fUST/lending_fUST_20240620
["ID","MTS","AMOUNT","RATE_DAILY","PERIOD"]
[329952338,1718861447056,-1000.0,0.0002894,10]
[329952339,1718861447066,-1000.0,0.0002894,10]
[329952340,1718861447075,-1000.0,0.0002894,10]
[329952341,1718861447086,-1000.0,0.0002894,10]
[329952342,1718861447095,-1000.0,0.0002894,10]
[329952343,1718861447105,-1000.0,0.0002894,10]
[329952344,1718861447114,-1000.0,0.0002894,10]
[329952345,1718861447124,-1000.0,0.0002894,10]
[329952346,1718861447133,-1000.0,0.0002894,10]
[329952347,1718861447143,-1000.0,0.0002894,10]
[329952348,1718861447152,-1000.0,0.0002894,10]
[329952349,1718861447162,-1000.0,0.0002894,10]
[329952350,1718861447171,-432.617366,0.0002894,10]
[329952351,1718861447180,-256.5,0.0002894,2]
[329952352,1718861447190,-256.5,0.0002894,2]
[329952353,1718861447199,-256.5,0.0002894,2]
[329952354,1718861447208,-256.5,0.0002894,2]
[329952355,1718861447218,-189.083155,0.0002894,2]
[329952356,1718861447227,-151.0,0.0002894,2]
[329952357,1718861447236,-175.719279,0.0002895,2]
[329952358,1718861447246,-254.049515,0.0002895,2]
[329952359,1718861447255,-254.049515,0.0002895,2]
[329952360,1718861447264,-151.0,0.0002895,2]
[329952361,1718861447273,-391.821831,0.0002897,2]
[329952362,1718861447282,-391.821831,0.0002897,2]
[329952363,1718861447293,-175.719279,0.0002897,2]
[329952365,1718861447302,-254.049515,0.0002897,2]
[329952367,1718861447312,-254.049515,0.0002897,2]
[329952369,1718861447321,-783.20721978,0.00028995,2]
[329952371,1718861447331,-2586.15724471,0.00029,30]
[329952373,1718861447340,-1213.42959206,0.00029136,2]
[329952375,1718861447350,-154.52262254,0.00029802,2]
[329952377,1718861447359,-438.52,0.0002999,3]
[329952379,1718861447368,-877.05,0.0002999,3]
[329952381,1718861447378,-503.74300122,0.00029997,2]
[329952383,1718861447387,-275.82048278,0.00029997,2]
[329952385,1718861447398,-155.53370862,0.00029998,2]
[329952387,1718861447407,-692.74146794,0.00029998,2]
[329952389,1718861447417,-575.74928582,0.0003,4]
[329952391,1718861447426,-391.821831,0.0003,2]
[329952393,1718861447435,-391.821831,0.0003,2]
[329952395,1718861447445,-175.719279,0.0003,2]
[329952397,1718861447454,-254.049515,0.0003,2]
[329952399,1718861447463,-254.049515,0.0003,2]
[329952401,1718861447472,-256.5,0.0003,2]
[329952403,1718861447481,-256.5,0.0003,2]
[329952405,1718861447491,-40245.33,0.000302,3]
[329952407,1718861447500,-7994.52954604,0.0003021,3]
[329952416,1718861447583,-500.0,0.0003021,3]
[329952420,1718861447606,-39799.87045396,0.0003021,3]
[329952422,1718861447615,-11363.27046273,0.0003022,3]
[329952632,1718861469756,353.7,0.00026,60]
[329952647,1718862438152,-205.0,0.0002,2]
[329952648,1718862446118,-4186.16215198,0.0002,2]
[329952649,1718862446140,-209.654322,0.00020321,2]
[329952650,1718862446165,-249.0603383,0.00020646,2]
[329952651,1718862446185,-183.69345316,0.00021,2]
[329952652,1718862446206,-534.66083588,0.00021095,2]
[329952653,1718862446227,-169.552695,0.00021096,2]
[329952654,1718862446249,-166.963424,0.00021918,2]
[329952655,1718862446269,-250.84829947,0.00022091,2]
[329952662,1718862557116,-2573.34168309,0.0002209,2]
[329952663,1718862557137,-500.0,0.0002209,2]
[329952664,1718862557160,-500.0,0.0002209,2]
[329952665,1718862557180,-500.0,0.0002209,2]
[329952666,1718862557204,-417.97482389,0.0002209,2]
[329952667,1718862557235,-15994.63453562,0.00022091,2]
[329952668,1718862559111,-12266.37844146,0.00022091,2]
[329952669,1718862559183,-2506.65529073,0.00022091,2]
[329952670,1718862559209,-181.51786119,0.00022091,2]
[329952671,1718862559228,-205.0,0.00022192,2]
[329952672,1718862559250,-1582.54864688,0.00022196,3]
[329952673,1718862559270,-841.84632534,0.000223,2]
[329952674,1718862559298,-928.41221697,0.00022895,2]
[329952675,1718862559318,-5819.3231061,0.00022897,2]
[329952676,1718862559339,-150.0,0.000239,2]
[329952677,1718862573653,181.51786119,0.00022091,2]
[329952678,1718862593633,181.51786119,0.00022091,2]
[329952681,1718862613646,181.51786119,0.00022091,2]
[329952682,1718862631637,181.51786119,0.00022091,2]
[329952709,1718862632426,-190.743618,0.00024532,2]
[329952710,1718862632435,-337.80118591,0.00024926,2]
[329952711,1718862632444,-219.29229276,0.00024927,2]
[329952712,1718862632454,-154.46122466,0.00025445,2]
[329952713,1718862632463,-242.65197293,0.00025995,2]
[329952714,1718862632472,-1134.16076429,0.00025998,2]
[329952715,1718862632480,-1360.39560282,0.00025998,2]
[329952716,1718862632489,-1581.77175318,0.00025998,7]
[329952717,1718862632499,-2044.42156785,0.00025998,2]
[329952718,1718862632508,-2566.74111167,0.00025998,2]
[329952719,1718862632520,-500.0,0.00025999,2]
[329952720,1718862632534,-357.550103,0.00025999,2]
[329952721,1718862632548,-290.13797075,0.00025999,2]
[329952722,1718862632557,-258.91559183,0.00025999,2]
[329952723,1718862632567,-15603.39614641,0.00025999,2]
[329952725,1718862632608,-586.45391266,0.00025999,2]
[329952726,1718862632617,-443.48472666,0.00025999,2]
[329952727,1718862632626,-66334.07504481,0.00026,7]
[329952980,1718862640770,-213.10831377,0.00025998,2]
[329952982,1718862640781,-9285.52012985,0.00026,7]
[329952984,1718862640794,-1486.11992502,0.00026241,2]
[329952986,1718862640804,-192.95483474,0.00026341,2]
[329952998,1718862640967,-322.45380865,0.00026341,2]
[329952999,1718862640978,-154.46122466,0.00026441,2]
[329953000,1718862640987,-164.88985818,0.00028481,2]
[329953146,1718862643980,-350.5187852,0.00028481,2]
[329953147,1718862643990,-150.0,0.000289,2]
[329953149,1718862644000,-783.20721978,0.00028995,2]
[329953151,1718862644009,-3640.36697251,0.00029683,2]
[329953152,1718862644021,-366.70810306,0.00029683,2]
[329953198,1718862646810,-1266.31783324,0.00029683,2]
[329953200,1718862646819,-383.83285722,0.0003,4]
[329953202,1718862646829,-225.25685943,0.0003022,4]
[329953204,1718862646838,-3031.34550017,0.0003022,4]
[329953206,1718862646847,-515.40864338,0.00030621,2]
[329953208,1718862646856,-154.46122466,0.00030835,7]
[329953210,1718862646867,-154.46122466,0.00031518,7]
[329953212,1718862646876,-515.40864338,0.0003276,2]
[329953214,1718862646885,-1000.0,0.00033,33]
[329953216,1718862646894,-154.46122466,0.00033847,7]
[329953218,1718862646904,-151.0,0.0003395,2]
[329953219,1718862646914,-151.0,0.0003395,2]
[329953221,1718862646923,-151.0,0.0003396,2]
[329953222,1718862646932,-151.0,0.0003396,2]
[329953223,1718862646942,-438.22374599,0.00033988,4]
[329953224,1718862646951,-270.16174361,0.00033989,4]
[329953225,1718862646960,-270.0,0.0003399,2]
[329953226,1718862646970,-46797.61,0.0003399,3]
[329953228,1718862646979,-38998.01,0.0003399,3]
[329953229,1718862646988,-19253.07899006,0.00034,2]
[329953232,1718862651651,200.40889966,0.00022091,2]
[329953233,1718862677470,9892.99503983,0.00022091,2]
[329953234,1718862709209,169.625233,0.00019091,2]
[329953235,1718862764720,208.6642936,9.999e-05,2]
[329953236,1718862819204,154.82968634,0.00014,2]
[329953242,1718863288972,1582.96582005,0.0001,2]
[329953243,1718863326799,1000.0,0.00026,60]
[329953246,1718863646151,-718.86520921,0.00015,2]
[329953247,1718863747088,-990.06934807,0.00014314,2]
[329953248,1718863747109,-355.35845044,0.00014315,2]
[329953249,1718863747129,-356.06658055,0.00015,2]
[329953250,1718863747150,-251.446932,0.00018074,2]
[329953251,1718863747170,-1782.8783726,0.00018074,2]
[329953252,1718863747190,-1300.35493441,0.0001899,2]
[329953253,1718863747210,-300.0,0.00019085,2]
[329953254,1718863747229,-209.09237555,0.00019086,2]
[329953255,1718863747250,-1581.74302686,0.00019086,2]
[329953256,1718863747270,-154.82968834,0.00019086,2]
[329953257,1718863747290,-185.63459509,0.00019086,4]
[329953258,1718863747311,-2764.41142288,0.00019088,2]
[329953259,1718863747330,-318.63690139,0.00019088,2]
[329953260,1718863747349,-395.78177237,0.00019088,2]
[329953261,1718863747370,-553.08313978,0.00019088,2]
[329953262,1718863747390,-932.70635835,0.00019088,2]
[329953263,1718863747411,-243.19105473,0.00019088,2]
[329953264,1718863747431,-155.28620724,0.00019088,2]
[329953265,1718863747451,-3172.19438533,0.00019088,2]
[329953266,1718863747471,-708.37584038,0.00019088,2]
[329953267,1718863747491,-380.36503344,0.00019088,2]
[329953268,1718863747511,-217.03246266,0.00019088,2]
[329953269,1718863747533,-155.31154211,0.00019088,2]
[329953270,1718863747552,-182.71083848,0.00019088,2]
[329953271,1718863747575,-1348.13514191,0.00019089,2]
[329953272,1718863747594,-225.43199399,0.0001909,2]
[329953273,1718863747620,-16639.75761487,0.0001909,2]
[329953274,1718863747641,-517.79053728,0.0001909,2]
[329953275,1718863747662,-18558.55106556,0.00019091,2]
[329953276,1718863747685,-150.0,0.00019991,2]
[329953277,1718863747705,-878.84919182,0.0002,2]
[329953278,1718863747725,-169.564785,0.00021096,2]
[329953279,1718863750521,175.87334916,9.999e-05,2]
[329953280,1718863753120,-166.666666,0.00021918,2]
[329953281,1718863753141,-166.39816905,0.00021991,2]
[329953282,1718863753161,-957.79817677,0.00022088,2]
[329953283,1718863753183,-500.0,0.0002209,2]
[329953284,1718863753203,-422.89546665,0.0002209,2]
[329953285,1718863753223,-500.0,0.0002209,2]
[329953286,1718863753245,-271.83908676,0.0002209,2]
[329953287,1718863753266,-4397.15847732,0.00022091,2]
[329953337,1718863832894,-175.87334916,0.0002209,2]
[329953339,1718863832904,-340.33432718,0.0002209,2]
[329953346,1718863832966,-1778.45592737,0.0002209,2]
[329953348,1718863832978,-448.58399885,0.0002209,2]
[329953350,1718863832987,-1580.3155288,0.00022091,2]
[329953352,1718863832999,-3929.39279019,0.00022091,2]
[329953354,1718863833011,-310.0,0.00022091,2]
[329953356,1718863833022,-2048.81293769,0.00022091,2]
[329953358,1718863833033,-1230.73940947,0.00022091,2]
[329953361,1718863833179,-505.19531838,0.00022091,2]
[329953398,1718863840427,-13399.27871141,0.00022091,2]
[329953399,1718863840440,-2270.82460819,0.00022091,2]
[329953400,1718863840677,-1570.92564338,0.00022091,2]
[329953411,1718863841598,-5724.53010331,0.00022091,2]
[329953414,1718863841610,-1172.45409667,0.00022091,2]
[329953549,1718863847308,-3775.59517663,0.00022091,2]
[329953551,1718863847318,-5120.35062914,0.00022091,2]
[329953552,1718863847327,-5459.44368757,0.00022091,2]
[329953554,1718863847337,-225.25685943,0.00022091,2]
[329953555,1718863847346,-181.51786119,0.00022091,2]
[329953556,1718863847356,-638.15365123,0.00023053,2]
[329953557,1718863847367,-620.90768256,0.00024205,2]
[329953558,1718863847377,-150.0,0.00024991,2]
[329953559,1718863847387,-156.99516229,0.00025392,2]
[329953561,1718863847397,-156.99516229,0.00025429,2]
[329953563,1718863847407,-156.99516229,0.00026201,2]
[329953565,1718863847418,-156.99516229,0.00026692,2]
[329953567,1718863847428,-156.99516229,0.00026841,2]
[329953568,1718863847437,-1000.0,0.000272,2]
[329953570,1718863847446,-156.99516229,0.00027513,2]
[329953571,1718863847456,-381.55172603,0.00028994,2]
[329953572,1718863847465,-181.24091428,0.00028994,2]
[329953573,1718863847475,-783.20721978,0.00028995,2]
[329953574,1718863847484,-8773.03015381,0.0002967,2]
[329953575,1718863847513,-83.16841489,0.0002967,2]
[329953576,1718863847522,-166.39816904,0.0002985,2]
[329953577,1718863847531,-319.86071435,0.0003,4]
[329953578,1718863847541,-156.99516229,0.00030957,7]
[329953579,1718863847552,-156.99516229,0.00031439,7]
[329953580,1718863847562,-156.99516229,0.00033343,7]
[329953581,1718863847571,-1000.0,0.00033719,2]
[329953582,1718863847580,-1000.0,0.00033729,2]
[329953583,1718863847589,-1000.0,0.00033734,2]
[329953584,1718863847599,-1000.0,0.00033741,2]
[329953585,1718863847608,-1000.0,0.00033769,2]
[329953586,1718863847618,-1000.0,0.00033788,2]
[329953587,1718863847627,-396.70788305,0.00033791,2]
[329953588,1718863847640,-1000.0,0.00033796,2]
[329953589,1718863847649,-1000.0,0.00033814,2]
[329953590,1718863847660,-300.0,0.00033814,2]
[329953591,1718863847670,-1000.0,0.00033844,2]
[329953592,1718863847680,-5273.39290881,0.00033856,2]
[329953593,1718863847691,-1000.0,0.00033857,2]
[329953594,1718863847700,-300.0,0.00033858,2]
[329953595,1718863847711,-1000.0,0.00033866,2]
[329953596,1718863847816,-1000.0,0.0003388,2]
[329953597,1718863847826,-1000.0,0.00033887,2]
[329953598,1718863847836,-1000.0,0.00033888,2]
[329953599,1718863847845,-300.11729452,0.00033898,2]
[329953600,1718863847855,-1000.0,0.00033907,2]
[329953601,1718863847864,-300.0,0.00033908,2]
[329953602,1718863847874,-391.92523368,0.00033908,2]
[329953603,1718863847883,-1000.0,0.00033909,2]
[329953604,1718863847893,-1000.0,0.00033935,2]
[329953605,1718863847903,-1000.0,0.00033944,2]
[329953606,1718863847912,-1000.0,0.00033951,2]
[329953607,1718863847922,-300.0,0.00033958,2]
[329953608,1718863847931,-1000.0,0.00033966,2]
[329953609,1718863847940,-1000.0,0.00033973,2]
[329953610,1718863847950,-305.18319216,0.00033976,2]
[329953611,1718863847960,-27081.95,0.0003398,3]
[329953612,1718863847970,-328.89,0.0003398,3]
[329953613,1718863847980,-1099.9827014,0.00033986,2]
[329953614,1718863847989,-26878.62592003,0.0003399,3]
[329953625,1718864531440,2000.25353,0.00025999,60]
[329953627,1718864848378,-170.855467,0.00021096,2]
[329953628,1718864848398,-172.99174897,0.00022091,2]
[329953629,1718864848418,-150.0,0.00023899,2]
[329953630,1718864848437,-167.260182,0.00024205,2]
[329953631,1718864848457,-808.03785325,0.00024755,2]
[329953866,1718865039499,-151.0,0.000247,2]
[329953868,1718865039509,-20.3431184,0.00024755,2]
[329953969,1718865040543,-419.84463997,0.00024755,2]
[329953994,1718865040782,-1319.14864178,0.00024755,2]
[329953996,1718865040792,-1904.85135822,0.00024756,2]
[329953998,1718865040804,-883.50503528,0.00024756,2]
[329954000,1718865040815,-1764.2084923,0.00024816,2]
[329954002,1718865040825,-156.9951623,0.00026005,2]
[329954004,1718865040835,-160.395583,0.00026338,2]
[329954006,1718865040845,-500.0,0.00026499,2]
[329954008,1718865040855,-500.0,0.00026499,2]
[329954010,1718865040865,-500.0,0.00026499,2]
[329954012,1718865040874,-500.0,0.00026499,2]
[329954014,1718865040883,-500.0,0.00026499,2]
[329954016,1718865040893,-650.0,0.00026499,2]
[329954018,1718865040903,-19386.85109355,0.000265,2]
[329954235,1718865042975,169.300368,9.9e-05,2]
[329954239,1718865042998,104.07299431,9.9e-05,2]
[329954347,1718865043984,-117.52965048,0.000265,2]
[329954600,1718865046744,-2259.26515726,0.000265,2]
[329955065,1718865080513,148.78651731,9.999e-05,2]
[329955066,1718865080535,6.0122443,9.999e-05,2]
[329955067,1718865206642,1372.80151656,9.999e-05,2]
[329955068,1718865343172,1582.96582005,0.0001,2]
[329955069,1718865346762,200.0,0.000244,120]
[329955071,1718865810307,10000.0,0.00026,60]
[329955072,1718865817008,10000.0,0.00026,60]
[329955073,1718865832043,10000.0,0.00026,60]
[329955074,1718865843217,1410.16,0.00026,60]
[329955106,1718866030627,-2567.3742534,0.00019999,2]
[329955107,1718866030652,-154.79876161,0.0002,2]
[329955108,1718866030677,-296.88084319,0.0002,2]
[329955109,1718866030709,-153.0,0.0002,2]
[329955110,1718866030750,-170.63331,0.00021096,2]
[329955111,1718866030955,-150.0,0.000239,2]
[329955112,1718866030979,-212.1452163,0.00024755,2]
[329955113,1718866031007,-232.42720339,0.00024755,7]
[329955114,1718866031027,-215.808142,0.00024878,2]
[329955115,1718866031048,-15026.8131804,0.00025,4]
[329955116,1718866031069,-427.16819492,0.00025491,2]
[329955117,1718866031090,-225.30707158,0.00026,2]
[329955118,1718866031110,-150.0,0.00026123,2]
[329955119,1718866031131,-156.9951623,0.00026129,2]
[329955120,1718866031151,-5273.39290881,0.00026183,2]
[329955121,1718866031171,-200.0,0.000274,120]
[329955122,1718866031193,-156.9951623,0.00028384,2]
[329955123,1718866031214,-208.60974119,0.00029021,2]
[329955124,1718866031236,-350.0,0.00029022,2]
[329955125,1718866031257,-24900.0,0.00029023,2]
[329955126,1718866031278,-1804.58446168,0.000296,14]
[329955127,1718866031298,-526.31566383,0.00029778,2]
[329955128,1718866031319,-878.4496614,0.00029778,7]
[329955129,1718866050111,-205.0,0.00029778,7]
[329955130,1718866054114,-225.25685943,0.00026,2]
[329955131,1718866054135,-44.90488418,0.00029778,7]
[329955452,1718866235674,-913.24602737,0.00028569,2]
[329955741,1718866238718,-4109.16328342,0.00028569,2]
[329955742,1718866238731,-150.2588899,0.00028569,2]
[329955743,1718866238741,-1546.59598889,0.00029037,2]
[329955775,1718866241308,-3626.0722118,0.00029037,2]
[329955776,1718866241318,-5172.66820069,0.00029164,2]
[329955778,1718866241327,-5172.66820069,0.00029563,2]
[329955781,1718866241337,-454.1941013,0.00029778,7]
[329955783,1718866241347,-1787.01289485,0.00029778,14]
[329955784,1718866241357,-155.17686722,0.00029779,2]
[329955786,1718866241367,-5172.66820069,0.00029942,2]
[329955788,1718866241376,-230.0,0.0003,120]
[329955790,1718866241386,-223.90250004,0.00030355,4]
[329955792,1718866241395,-5172.66820071,0.00030356,2]
[329955794,1718866241407,-2837.45708095,0.00030846,2]
[329955796,1718866241416,-156.9951623,0.00032085,7]
[329955797,1718866241426,-156.9951623,0.00032834,7]
[329955799,1718866241438,-156.9951623,0.00033557,7]
[329955801,1718866241448,-1000.0,0.000336,21]
[329955803,1718866241457,-1000.0,0.00033718,2]
[329955805,1718866241467,-369.6302735,0.000339,2]
[329955807,1718866241479,-163.5221683,0.00033985,7]
[329955809,1718866241488,-1355.96086746,0.00033986,4]
[329955811,1718866241498,-275.7555891,0.00033987,4]
[329955813,1718866241507,-1764.81495663,0.00033988,4]
[329955815,1718866241516,-2878.23665169,0.00033988,4]
[329955817,1718866241526,-1924.48294577,0.00033988,4]
[329955819,1718866241536,-633.68205188,0.00033988,4]
[329955821,1718866241545,-1303.97341688,0.00033989,4]
[329955823,1718866241555,-12028.03,0.0003399,3]
[329955825,1718866241564,-935.7979488,0.00033999,4]
[329955827,1718866241574,-7064.26528585,0.00034,2]
[329955829,1718866241586,-304.71368244,0.00034,2]
[329955899,1718866244115,-90570.64006591,0.00034,2]
[329955900,1718866244124,-154.79876161,0.00034,2]
[329955901,1718866244134,-252.0,0.00034,7]
[329955902,1718866244143,-172.725681,0.00034,2]
[329955903,1718866244153,-4727.60564741,0.00035,4]
[329955904,1718866244162,-5337.01315259,0.00035,4]
[329955905,1718866244171,-7958.26870547,0.00035,5]
[329955906,1718866244181,-154.79876161,0.00035,4]
[329955907,1718866244190,-155.24291871,0.00035624,4]
[329955908,1718866244199,-262.00690401,0.00036019,4]
[329955909,1718866244209,-159.65974016,0.0003602,4]
[329955910,1718866244218,-156.9951623,0.00036551,7]
[329955911,1718866244227,-1751.0,0.0003657,2]
[329955912,1718866244238,-369.63027346,0.00037292,2]
[329955913,1718866244248,-1547.30677906,0.00038,120]
[329955914,1718866244258,-593.0,0.000382,2]
[329955915,1718866244267,-313.457465,0.000388,14]
[329955916,1718866244277,-1729.68103331,0.00039,120]
[329955918,1718866246935,-13911.8242018,0.00030094,2]
[329955919,1718866246945,-8664.54305592,0.00039,120]
[329955920,1718866246955,-1185.04928904,0.0004,4]
[329955921,1718866246964,-808.88059479,0.0004,2]
[329955922,1718866246974,-200.0,0.0004,120]
[329955923,1718866246984,-170.63331,0.00040411,2]
[329955924,1718866246994,-156.9951623,0.00040578,30]
[329955925,1718866247004,-369.63027346,0.00040684,2]
[329955926,1718866247014,-156.9951623,0.00042087,30]
[329955927,1718866247024,-1963.29851572,0.000425,30]
[329955929,1718866247033,-150.78889555,0.00042997,2]
[329955931,1718866247045,-156.9951623,0.00043363,30]
[329955933,1718866247055,-200.0,0.00044,120]
[329955935,1718866247064,-369.63027346,0.00044075,2]
[329955937,1718866247073,-500.23883052,0.0004426,8]
[329955939,1718866247083,-945.27520757,0.00044757,7]
[329955940,1718866247092,-1000.0,0.0004485,7]
[329955941,1718866247101,-1000.0,0.00044917,7]
[329955942,1718866247111,-1000.0,0.00044937,7]
[329955943,1718866247121,-1000.0,0.0004494,7]
[329955944,1718866247130,-1000.0,0.00045,45]
[329955945,1718866247139,-313.457465,0.00045,14]
[329955946,1718866247149,-313.457465,0.00045,14]
[329955947,1718866247159,-164.612344,0.00045005,30]
[329955948,1718866247168,-177.329118,0.00045005,30]
[329955949,1718866247177,-164.612344,0.00045005,30]
[329955950,1718866247187,-177.329118,0.00045005,30]
[329955951,1718866247196,-10000.0,0.000455,75]
[329955952,1718866247205,-167.69661557,0.00045998,4]
[329955953,1718866247215,-5613.73684075,0.00046,4]
[329955954,1718866247224,-1162.19,0.00046,8]
[329955955,1718866247233,-416.84238854,0.00046,4]
[329955956,1718866247242,-151.0,0.00046,14]
[329955957,1718866247251,-151.0,0.00046,14]
[329955958,1718866247260,-151.0,0.00046,14]
[329955959,1718866247270,-164.612344,0.0004613,30]
[329955960,1718866247278,-2705.53233217,0.0004633,4]
[329955961,1718866247288,-313.457465,0.00046899,14]
[329955962,1718866247298,-313.457465,0.00046899,14]
[329955963,1718866247307,-12355.69871356,0.00047,30]
[329955964,1718866719179,7003.0,0.00025,120]
[329955966,1718866835227,412.12771792,9.999e-05,2]
[329955968,1718867019117,346.62399742,0.00025,120]
[329955977,1718867227108,-170.63331,0.00021096,2]
[329955978,1718867227131,-269.93705559,0.000224,6]
[329955979,1718867227152,-195.44202012,0.000229,2]
[329955980,1718867227173,-67.17615509,0.00025,2]
[329955981,1718867233260,-114.3417061,0.00025,2]
[329955982,1718867233280,-155.45281959,0.00025,2]
[329955983,1718867233301,-162.12754738,0.00025,2]
[329955984,1718867234100,-295.42759737,0.00025,2]
[329955985,1718867234120,-6478.96667822,0.00025,7]
[329955986,1718867237161,-19869.75578,0.00025,7]
[329955987,1718867250194,-2531.97537808,0.00025,7]
[329955988,1718867253123,-40205.57189981,0.00025,7]
[329955989,1718867253144,-457.55514475,0.00025,2]
[329955990,1718867253166,-152.30846842,0.00025997,2]
[329955991,1718867253186,-1186.39957978,0.000278,2]
[329955992,1718867253208,-195.44202012,0.000279,2]
[329955993,1718867253229,-152.30846842,0.00027927,2]
[329955994,1718867253249,-154.89281334,0.00028,7]
[329955995,1718867253269,-12153.73440394,0.00029,30]
[329955996,1718867253289,-154.79876161,0.000292,2]
[329955997,1718867253308,-223.90250004,0.0003,4]
[329955998,1718867253328,-470.04995089,0.0003,4]
[329955999,1718867253349,-154.79876161,0.0003,4]
[329956000,1718867253368,-152.30846842,0.0003014,7]
[329956001,1718867253388,-152.30846842,0.00031698,7]
[329956002,1718867253410,-364.72365684,0.00032,4]
[329956003,1718867253430,-152.30846842,0.00032061,7]
[329956004,1718867253451,-195.44202012,0.000329,2]
[329956005,1718867253475,-150.78889555,0.0003419,2]
[329956006,1718867253496,-301.57779109,0.00034765,4]
[329956007,1718867253518,-152.30846842,0.00034973,7]
[329956008,1718867253537,-5598.90325189,0.00035,4]
[329956009,1718867253560,-4727.60564741,0.00035,4]
[329956010,1718867253582,-603.15558218,0.00035349,7]
[329956011,1718867253603,-154.84133006,0.0003589,2]
[329956012,1718867253626,-166.76045536,0.00035943,4]
[329956013,1718867253648,-1206.31116437,0.00036244,30]
[329956014,1718867253670,-166.963424,0.00036773,2]
[329956015,1718867253694,-160.3955821,0.00037684,2]
[329956016,1718867253716,-703.9161957,0.00037868,2]
[329956017,1718867253738,-232.84748097,0.00038,120]
[329956018,1718867253758,-808.88059479,0.0004,2]
[329956019,1718867253784,-154.79876161,0.0004,4]
[329956020,1718867253804,-594.0,0.000411,30]
[329956021,1718867253824,-152.30846842,0.00041582,30]
[329956022,1718867253844,-8640.46,0.0004249,3]
[329956023,1718867253865,-1963.29851572,0.000425,30]
[329956024,1718867253987,-155.12159331,0.00043634,4]
[329956025,1718867254011,-174.651048,0.00045005,30]
[329956026,1718867254032,-200.89525,0.00045005,30]
[329956027,1718867254052,-252.0,0.000463,23]
[329956028,1718867254072,-152.30846842,0.00046785,30]
[329956029,1718867254093,-6000.32,0.0004697,3]
[329956030,1718867254114,-10368.56,0.0004698,3]
[329956031,1718867254133,-7200.39,0.0004698,3]
[329956032,1718867254155,-14930.72,0.0004699,3]
[329956033,1718867254176,-12442.27,0.0004699,3]
[329956034,1718867254198,-500.0,0.00046997,120]
[329956035,1718867254220,-500.0,0.00046997,120]
[329956036,1718867254241,-263.68097244,0.00046997,120]
[329956037,1718867254262,-500.0,0.00046997,31]
[329956038,1718867254284,-154.54438824,0.00046997,120]
[329956039,1718867254305,-500.0,0.00046997,120]
[329956040,1718867254325,-238.47158483,0.00046997,31]
[329956041,1718867254348,-500.0,0.00046997,120]
[329956042,1718867254369,-360.41792203,0.00046997,120]
[329956043,1718867254390,-500.0,0.00046997,120]
[329956044,1718867254411,-617.11728934,0.00046998,20]
[329956045,1718867254430,-372.1820612,0.00046998,4]
[329956046,1718867254450,-586.45391266,0.00046998,4]
[329956047,1718867254470,-412.98760283,0.00046998,4]
[329956048,1718867254490,-40085.85666381,0.00046998,2]
[329956049,1718867254510,-5638.64129428,0.00046998,60]
[329956050,1718867254530,-536.14607846,0.00046998,4]
[329956051,1718867254550,-350.01564341,0.00046998,4]
[329956052,1718867254569,-783.13124269,0.00046998,4]
[329956053,1718867254589,-155.29872316,0.00046998,4]
[329956054,1718867254609,-312.99543347,0.00046998,120]
[329956055,1718867254629,-309.81958574,0.00046998,30]
[329956056,1718867254648,-3092.03695105,0.00046998,4]
[329956057,1718867254668,-2644.30128644,0.00047,30]
[329956058,1718867254692,-313.457465,0.00047,14]
[329956059,1718867254713,-313.457465,0.00047,14]
[329956060,1718867254734,-5000.4880797,0.00047,4]
[329956061,1718867254753,-2729.27166779,0.00047,4]
[329956062,1718867254774,-2101.31044208,0.00047,4]
[329956063,1718867254793,-150.0,0.00047,90]
[329956064,1718867254813,-184.81513673,0.00047155,2]
[329956065,1718867254833,-152.30846842,0.00047199,30]
[329956066,1718867254852,-164.612344,0.00047255,30]
[329956067,1718867254873,-177.329118,0.00047255,30]
[329956068,1718867254893,-265.1,0.0004739,30]